Workbook

Sheet FY17 CAP
A1: CITY OF TOLLESON
A2: CAPITAL IMPROVEMENT PLAN
A3: FISCAL YEAR 2017
D5: ACCOUNT | G5: AMOUNT
A6: GENERAL FUND
B8: CITY HALL - 1161
B9: OFFICE SPACE AND BREAKROOM ADDITION | D9: 8549 | G9: 350000
B10: TOTAL | G10: =SUM(G9:G9) -> 350000
B12: ECONOMIC DEVELOPMENT - 1170
B13: LAND | D13: 8501 | G13: 300000
B14: IMPROVEMENTS | D14: 8511 | G14: 75000
B15: TOTAL | G15: =SUM(G13:G14) -> 375000
B17: FINANCE - 1171
B18: COMPUTER SOFTWARE | D18: 8518 | G18: 25000
B19: FURNITURE | D19: 8550 | G19: 10000
B20: TOTAL | G20: =SUM(G18:G19) -> 35000
B22: POLICE - 1172
B23: RADIO CONSOLE | D23: 8508 | G23: 100000
B24: SPILLMAN SERVER | D24: 8514 | G24: 20000
B25: 911/CTI EQUIPMENT | D25: 8550 | G25: 27000
B26: DISPATCH FURNITURE | D26: 8550 | G26: 18000
B27: DESKTOP PC | D27: 8550 | G27: 2500
B28: VOICE LOGGER CHANNELS | D28: 8550 | G28: 3500
B29: IT STARTUP SERVICES | D29: 8550 | G29: 41400
G30: =SUM(G23:G29) -> 212400
B32: LIBRARY - 1173
B33: FRONT ENTRY RENOVATION | D33: 8502 | G33: 170000
B34: OFFICE FURNITURE AND EQUIPMENT | D34: 8549 | G34: 25000
B35: SMALL EQUIPMENT PURCHASES | D35: 8550 | G35: 15000
B36: TOTAL | G36: =SUM(G33:G35) -> 210000
B38: PARKS - 1175
B39: 95TH AVE PARK IMPROVEMENTS | D39: 8549 | G39: 150000
B40: ART MURAL RENOVATION | D40: 8549 | G40: 24000
B41: RENOVATE HIGH SCHOOL POOL | D41: 8550 | G41: 20000
B42: COMMUNITY GARDEN PARK | D42: 8549 | G42: 20000
B43: TOTAL | G43: =SUM(G39:G42) -> 214000
B45: IT- 1176
B46: SERVER REFRESH | D46: 8514 | G46: 60000
B47: SHAREPOINT IMPLEMENTATION | D47: 8550 | G47: 5860
B48: ACCESS SWITCH REFRESH | D48: 8550 | G48: 5400
B49: PC REFRESH (15) | D49: 8550 | G49: 22500
B50: PRINTER REFRESH (3) | D50: 8550 | G50: 1500
B51: OFFICE 2013 UPGRADE (25) | D51: 8550 | G51: 8300
B52: TOTAL | G52: =SUM(G46:G51) -> 103560
B54: FIELD OPERATIONS - 1177
B55: EQUIPMENT REPLACEMENT | D55: 8517 | G55: 35000
B56: TOTAL | G56: =SUM(G55:G55) -> 35000
B58: COMM SERV / SENIOR CENTER- 1178
B59: TABLES AND CHAIRS | D59: 8550 | G59: 10000
B60: TOTAL | G60: =SUM(G59:G59) -> 10000
B62: BOYS / GIRLS CLUB - 1179
B63: OFFICE FURNITURE AND EQUIPMENT | D63: 8507 | G63: 12000
B64: RESTROOM RENOVATION | D64: 8511 | G64: 30000
B65: PAINT FACILITY | D65: 8550 | G65: 30000
B66: TOTAL | G66: =SUM(G63:G65) -> 72000
B68: CONTINGENCY - 1180
B69: OTHER CAPITAL OUTLAY | D69: 8549 | G69: 600000
B70: MISC CAPITAL OUTLAY UNDER $5,000 | D70: 8550 | G70: 150000
B71: TOTAL | G71: =SUM(G69:G70) -> 750000
B73: TOTAL GENERAL FUND | G73: =G10+G15+G20+G36+G43+G52+G56+G60+G66+G71+G30 -> 2366960
B75: SPECIAL REVENUE FUNDS
B77: STREETS - 2270
B78: STREET SWEEPER | D78: 8509 | G78: 300000
B79: STREET CONSTRUCTION | D79: 8515 | G79: 300000
B80: TOTAL | G80: =SUM(G78:G79) -> 600000
B82: LIBRARY OTHER GRANT - 2467
B83: LIBRARY EXPANSION | D83: 8502 | G83: 60000
B84: TOTAL | G84: =SUM(G83) -> 60000
B86: PUBLIC SAFETY FIRE - 2610
B87: RADIO EQUIPMENT | D87: 8508 | G87: 7500
B88: FIREFIGHTING EQUIPMENT | D88: 8516 | G88: 15000
B89: SCBA | D89: 8516 | G89: 83000
B90: EMS CART | D90: 8516 | G90: 10000
B91: STATION FURNITURE | D91: 8550 | G91: 10000
B92: STATION APPLIANCES | D92: 8550 | G92: 7500
B93: FIREFIGHTING EQUIPMENT UNDER $5,000 | D93: 8550 | G93: 5000
B94: COMPUTER | D94: 8550 | G94: 2500
B95: FITNESS EQUIPMENT | D95: 8550 | G95: 5000
B96: TOTAL | G96: =SUM(G87:G95) -> 145500
B98: PUBLIC SAFETY POLICE - 2611
B99: REGIONAL WIRELESS COOP ANNUAL FEES | D99: 8508 | G99: 95000
B100: VOICE LOGGER | D100: 8508 | G100: 35000
B101: REPLACEMENT PATROL VEHICLES | D101: 8509 | G101: 110000
B102: SPILLMAN SERVER | D102: 8514 | G102: 75000
B103: SECURE NETWORK SERVERS | D103: 8514 | G103: 25000
B104: DIGITAL EVIDENCE STORAGE | D104: 8514 | G104: 20000
B105: GIS SERVER, MAPPING, AVL | D105: 8514 | G105: 15000
B106: DOWNTOWN SECURITY CAMERAS | D106: 8549 | G106: 100000
B107: BODY WORN CAMERA SERVER | D107: 8549 | G107: 25000
B108: DIGITAL SIGN BOARDS FOR TRAFFIC/GENERATORS | D108: 8549 | G108: 50000
B109: ASHPHALT FOR PROPERTY IMPOUND LOT | D109: 8549 | G109: 15000
B110: BALLISTIC VESTS (6) | D110: 8550 | G110: 6000
B111: POLICE DEPARTMENT PC'S | D111: 8550 | G111: 27500
B112: BODY WORN CAMERAS | D112: 8550 | G112: 25000
B113: TOTAL | G113: =SUM(G99:G112) -> 623500
B115: TOTAL SPECIAL REVENUE FUNDS | G115: =G80+G84+G96+G113 -> 1429000
B117: CAPITAL PROJECT FUNDS
B119: CONSTRUCTION - 3510
B120: WWTP CONSTRUCTION | D120: 8521 | G120: 650000
B121: TOTAL | G121: =SUM(G120) -> 650000
B123: CONSTRUCTION - 3520
B124: WWTP CONSTRUCTION | D124: 8521 | G124: 1452000
B125: TOTAL | G125: =SUM(G124) -> 1452000
B127: CONSTRUCTION - 3530
B128: WWTP CONSTRUCTION | D128: 8521 | G128: 199000
B129: TOTAL | G129: =SUM(G128) -> 199000
B131: TOTAL CAPITAL PROJECT FUNDS | G131: =G121+G125+G128 -> 2301000
B133: ENTERPRISE FUNDS
B135: WATER - 6170
B136: EAST WATER CAMPUS | D136: 8501 | G136: 100000
B137: DRILL AND OUTFIT NEW WELLS | D137: 8503 | G137: 200000
B138: WELL 4 TANK REPAIR | D138: 8503 | G138: 200000
B139: WELL 4 SITE DRAINAGE IMPROVEMENT | D139: 8503 | G139: 50000
B140: LOOP OLDER SECTION OF WATER LINE (WELL 3) | D140: 8503 | G140: 150000
B141: REPLACE SERVICE TRUCK & MANAGER VEHICLE | D141: 8509 | G141: 70000
B142: PUMPS/ MOTOR | D142: 8510 | G142: 40000
B143: VFD DRIVE WELL 8 | D143: 8510 | G143: 13000
B144: CRANE FOR DIST TRUCK | D144: 8510 | G144: 10000
B145: HYDRAULIC HAMMER FOR BACKHOE | D145: 8510 | G145: 12000
B146: MAG METERS AND EQUIP FOR WELL TREATMENT | D146: 8517 | G146: 27000
B147: NEW COMMERCIAL WATER METERS | D147: 8550 | G147: 30000
B148: EQUIP UNDER $5,000 | D148: 8550 | G148: 5000
B149: TOTAL | G149: =SUM(G136:G148) -> 907000
B151: WASTE WATER TREATMENT- 6370
B152: CEMENT DRYING BEDS | D152: 8502 | G152: 100000
B153: CHAIN, FLITES, PRIMARY SEDIMENTATION TANKS | D153: 8504 | G153: 25000
B154: BIOSCRUBBER/CARBON FILTER | D154: 8504 | G154: 40000
B155: POLYMER MIXING UNIT | D155: 8506 | G155: 15000
B156: AUTO SAMPLER | D156: 8506 | G156: 7000
B157: 12" FLOW METERS FOR SECONDARY CLARIFIERS | D157: 8506 | G157: 12000
B158: GOLF CART | D158: 8509 | G158: 7000
B159: VEHICLE | D159: 8509 | G159: 35000
B160: HYDROGRITTER (GRIT REMOVAL) | D160: 8510 | G160: 80000
B161: SUBMERSIBLE FLYGT PUMPS | D161: 8510 | G161: 15000
B162: STANLEY PUMP | D162: 8510 | G162: 10000
B163: MINOR LINE PUMPS | D163: 8510 | G163: 50000
B164: PLC REPLACEMENT COMPONENTS | D164: 8510 | G164: 10000
B165: SSTF PUMPS | D165: 8510 | G165: 40000
B166: FRONT END LOADER | D166: 8517 | G166: 150000
B167: AIR CONDITIONER UNITS | D167: 8517 | G167: 10000
B168: COMPUTER REPLACEMENT | D168: 8550 | G168: 5000
B169: 6" FLANGED CHECK VALVES | D169: 8550 | G169: 6000
B170: 6" FLANGED CHECK VALVES | D170: 8550 | G170: 6000
B171: TOTAL | G171: =SUM(G152:G170) -> 623000
B173: SEWER - 6470
B174: SEWER SYSTEM | D174: 8504 | G174: 180000
B175: SEWER LINE REPAIRS/REPLACEMENTS | D175: 8550 | G175: 5000
B176: TOTAL | G176: =SUM(G174:G175) -> 185000
B178: TOTAL ENTERPRISE FUNDS | G178: =G149+G171+G176 -> 1715000
B180: GRAND TOTAL | G180: =G73+G115+G131+G178 -> 7811960
